[Event "EYTCC Open U18 2022"]
[Site "Thessaloniki"]
[Date "2022.07.12"]
[Round "1.8"]
[White "Kochavi, Ori"]
[Black "Zlatkov, Anton"]
[Result "1/2-1/2"]
[ECO "B58"]
[WhiteElo "2364"]
[BlackElo "2149"]
[Annotator "ChessBase"]
[PlyCount "69"]
[EventDate "2022.07.12"]
[EventType "team-tourn"]
[EventCountry "GRE"]
[SourceTitle "playchess.com"]
[Source "ChessBase"]
[SourceQuality "1"]
[WhiteTeam "Israel"]
[BlackTeam "Macedonia"]
[WhiteTeamCountry "ISR"]
[BlackTeamCountry "MKD"]
[TimeControl "40/5400+30:1800+30"]

1. e4 {[%emt 0:00:19]} c5 {[%emt 0:00:05]} 2. Nf3 {[%emt 0:00:09]} d6 {[%emt 0:00:06]} 3. d4 {[%emt 0:00:03]} cxd4 {[%emt 0:00:07]} 4. Nxd4 {[%emt 0:00:03]} Nf6 {[%emt 0:00:09]} 5. Nc3 {[%emt 0:00:01]} Nc6 {[%emt 0:00:07]} 6. Be2 {[%emt 0:03:50]} e5 {[%emt 0:00:22]} 7. Nf3 {[%emt 0:00:14]} h6 {[%emt 0:00:50]} 8. O-O {[%emt 0:01:09]} Be7 {[%emt 0:00:18]} 9. Re1 {[%emt 0:01:45]} Be6 {[%emt 0:00:26]} 10. Bf1 {[%emt 0:00:20]} O-O {[%emt 0:00:26]} 11. Nd5 {[%emt 0:03:45]} Bxd5 {[%emt 0:08:04]} 12. exd5 {[%emt 0:00:03]} Nb4 {[%emt 0:00:19]} 13. c4 {[%emt 0:00:07]} a5 {[%emt 0:01:15]} 14. a3 {[%emt 0:20:37]} Na6 {[%emt 0:00:07]} 15. Rb1 {[%emt 0:00:02]} Nd7 {[%emt 0:13:10]} 16. b4 {[%emt 0:00:13]} axb4 {[%emt 0:00:56]} 17. axb4 {[%emt 0:00:31]} b6 {[%emt 0:08:08]} 18. Qb3 {[%emt 0:13:51]} f5 {[%emt 0:11:03]} 19. Bb2 {[%emt 0:00:18]} Bf6 {[%emt 0:08:33]} 20. Ra1 {[%emt 0:00:03]} Nc7 {[%emt 0:02:36]} 21. Rxa8 {[%emt 0:00:09]} Qxa8 {[%emt 0:00:46]} 22. Ra1 {[%emt 0:07:52]} Qb7 {[%emt 0:04:13]} 23. Qa4 {[%emt 0:03:10]} b5 {[%emt 0:01:19]} 24. Qa7 {[%emt 0:00:02]} Qb6 {[%emt 0:15:31]} 25. c5 {[%emt 0:27:18]} dxc5 {[%emt 0:00:14]} 26. Qxb6 {[%emt 0:00:22]} Nxb6 {[%emt 0:00:09]} 27. d6 {[%emt 0:00:01]} Ne6 {[%emt 0:03:26]} 28. bxc5 {[%emt 0:04:18]} Nxc5 {[%emt 0:00:14]} 29. Bxe5 {[%emt 0:00:04]} Nc4 {[%emt 0:09:18]} 30. Rc1 {[%emt 0:05:07]} Ne4 {[%emt 0:04:48]} 31. Bxc4+ {[%emt 0:01:55]} bxc4 {[%emt 0:00:02]} 32. Rxc4 {[%emt 0:03:33]} Bxe5 {[%emt 0:00:15]} 33. Nxe5 {[%emt 0:00:03]} Nxd6 {[%emt 0:00:06]} 34. Rc6 {[%emt 0:00:26]} Rc8 {[%emt 0:01:04]} 35. Rxc8+ {[%emt 0:00:31]} 1/2-1/2

[Event "EYTCC Open U18 2022"]
[Site "Thessaloniki"]
[Date "2022.07.12"]
[Round "1.9"]
[White "Baum, Jonasz"]
[Black "Bilych, Olexiy"]
[Result "1/2-1/2"]
[ECO "D41"]
[WhiteElo "2410"]
[BlackElo "2365"]
[Annotator "ChessBase"]
[PlyCount "62"]
[EventDate "2022.07.12"]
[EventType "team-tourn"]
[EventCountry "GRE"]
[SourceTitle "playchess.com"]
[Source "ChessBase"]
[SourceQuality "1"]
[WhiteTeam "Poland"]
[BlackTeam "Ukraine"]
[WhiteTeamCountry "POL"]
[BlackTeamCountry "UKR"]
[TimeControl "40/5400+30:1800+30"]

1. d4 {[%emt 0:00:02]} Nf6 {[%emt 0:00:04]} 2. c4 {[%emt 0:00:04]} e6 {[%emt 0:00:04]} 3. Nf3 {[%emt 0:00:08]} d5 {[%emt 0:00:05]} 4. Nc3 {[%emt 0:00:14]} c5 {[%emt 0:00:05]} 5. cxd5 {[%emt 0:00:27]} cxd4 {[%emt 0:00:05]} 6. Qxd4 {[%emt 0:01:12]} exd5 {[%emt 0:00:06]} 7. e4 {[%emt 0:01:16]} dxe4 {[%emt 0:00:05]} 8. Qxd8+ {[%emt 0:00:07]} Kxd8 {[%emt 0:00:05]} 9. Ng5 {[%emt 0:00:05]} Be6 {[%emt 0:00:04]} 10. Nxe6+ {[%emt 0:06:48]} fxe6 {[%emt 0:00:06]} 11. Bc4 {[%emt 0:07:00]} Ke7 {[%emt 0:00:08]} 12. Bg5 {[%emt 0:05:22]} Nc6 {[%emt 0:07:28]} 13. Nxe4 {[%emt 0:03:15]} Kf7 {[%emt 0:00:03]} 14. Nxf6 {[%emt 0:19:44]} Bb4+ {[%emt 0:00:04]} 15. Bd2 {[%emt 0:07:04]} Bxd2+ {[%emt 0:00:05]} 16. Kxd2 {[%emt 0:00:04]} Kxf6 {[%emt 0:00:05]} 17. Rac1 {[%emt 0:10:30]} Rhd8+ {[%emt 0:03:28]} 18. Ke3 {[%emt 0:00:32]} Rd6 {[%emt 0:01:05]} 19. Rhd1 {[%emt 0:02:08]} Rad8 {[%emt 0:01:58]} 20. Rxd6 {[%emt 0:00:07]} Rxd6 {[%emt 0:00:05]} 21. Bd3 {[%emt 0:08:26]} Nb4 {[%emt 0:21:26]} 22. Be4 {[%emt 0:01:10]} Nd5+ {[%emt 0:01:18]} 23. Bxd5 {[%emt 0:03:52]} Rxd5 {[%emt 0:00:08]} 24. Rc7 {[%emt 0:00:45]} Rb5 {[%emt 0:00:47]} 25. b3 {[%emt 0:00:16]} a5 {[%emt 0:01:02]} 26. Kd4 {[%emt 0:09:41]} a4 {[%emt 0:06:23]} 27. bxa4 {[%emt 0:09:15]} Rb2 {[%emt 0:00:17]} 28. Ke3 {[%emt 0:00:04]} Rxa2 {[%emt 0:00:05]} 29. Rxb7 {[%emt 0:00:46]} Rxa4 {[%emt 0:00:05]} 30. g3 {[%emt 0:00:07]} h5 {[%emt 0:00:07]} 31. h4 {[%emt 0:00:16]} g6 {[%emt 0:00:05]} 1/2-1/2

[Event "EYTCC Open U18 2022"]
[Site "Thessaloniki"]
[Date "2022.07.12"]
[Round "1.10"]
[White "Prokofiev, Valentyn"]
[Black "Czopor, Maciej"]
[Result "1-0"]
[ECO "E14"]
[WhiteElo "2286"]
[BlackElo "2415"]
[Annotator "ChessBase"]
[PlyCount "75"]
[EventDate "2022.07.12"]
[EventType "team-tourn"]
[EventCountry "GRE"]
[SourceTitle "playchess.com"]
[Source "ChessBase"]
[SourceQuality "1"]
[WhiteTeam "Ukraine"]
[BlackTeam "Poland"]
[WhiteTeamCountry "UKR"]
[BlackTeamCountry "POL"]
[TimeControl "40/5400+30:1800+30"]

1. d4 {[%emt 0:00:02]} Nf6 {[%emt 0:00:10]} 2. c4 {[%emt 0:00:11]} e6 {[%emt 0:00:06]} 3. Nf3 {[%emt 0:00:05]} b6 {[%emt 0:00:07]} 4. e3 {[%emt 0:00:17]} Bb7 {[%emt 0:00:22]} 5. Bd3 {[%emt 0:00:05]} d5 {[%emt 0:00:09]} 6. b3 {[%emt 0:00:05]} Bd6 {[%emt 0:01:08]} 7. O-O {[%emt 0:00:08]} O-O {[%emt 0:00:12]} 8. Bb2 {[%emt 0:00:27]} Nbd7 {[%emt 0:00:15]} 9. Nc3 {[%emt 0:00:05]} a6 {[%emt 0:00:48]} 10. Rc1 {[%emt 0:00:05]} Qe7 {[%emt 0:00:15]} 11. Na4 {[%emt 0:00:15]} dxc4 {[%emt 0:00:32]} 12. bxc4 {[%emt 0:00:03]} c5 {[%emt 0:00:23]} 13. Ne5 {[%emt 0:00:06]} Rfd8 {[%emt 0:00:45]} 14. f4 {[%emt 0:03:12]} Rac8 {[%emt 0:05:01]} 15. Qe2 {[%emt 0:04:00]} cxd4 {[%emt 0:00:52]} 16. exd4 {[%emt 0:07:47]} b5 {[%emt 0:00:26]} 17. cxb5 {[%emt 0:03:00]} Rxc1 {[%emt 0:00:06]} 18. Rxc1 {[%emt 0:01:38]} Nd5 {[%emt 0:05:30]} 19. Qf2 {[%emt 0:31:16]} Nb4 {[%emt 0:18:01]} 20. Bc4 {[%emt 0:03:16]} axb5 {[%emt 0:11:29]} 21. Bxb5 {[%emt 0:00:15]} Nxe5 {[%emt 0:14:28]} 22. fxe5 {[%emt 0:02:19]} Bb8 {[%emt 0:00:27]} 23. Ba3 {[%emt 0:00:34]} Ba7 {[%emt 0:11:29]} 24. Nc5 {[%emt 0:11:19]} Nd5 {[%emt 0:08:31]} 25. Rf1 {[%emt 0:06:13]} Ba8 {[%emt 0:02:27]} 26. Kh1 {[%emt 0:07:50]} h6 {[%emt 0:03:59]} 27. Bd3 {[%emt 0:03:10]} f5 {[%emt 0:12:13]} 28. exf6 {[%emt 0:04:35]} Nxf6 {[%emt 0:00:02]} 29. Qh4 {[%emt 0:03:22]} Rd5 {[%emt 0:03:46]} 30. Ne4 {[%emt 0:01:54]} Qxa3 {[%emt 0:00:41]} 31. Nxf6+ {[%emt 0:00:04]} gxf6 {[%emt 0:00:48]} 32. Qxf6 {[%emt 0:01:08]} Qxd3 {[%emt 0:00:15]} 33. Qf8+ {[%emt 0:00:06]} Kh7 {[%emt 0:00:05]} 34. Rf7+ {[%emt 0:00:03]} Kg6 {[%emt 0:00:04]} 35. Rg7+ {[%emt 0:00:09]} Kh5 {[%emt 0:00:04]} 36. Qf7+ {[%emt 0:00:10]} Kh4 {[%emt 0:00:12]} 37. Qf4+ {[%emt 0:00:04]} Kh5 {[%emt 0:00:06]} 38. Qg4# {[%emt 0:00:02]} 1-0

[Event "EYTCC Open U18 2022"]
[Site "Thessaloniki"]
[Date "2022.07.12"]
[Round "1.11"]
[White "Klimkowski, Jan"]
[Black "Hulka, Valentyn"]
[Result "1/2-1/2"]
[ECO "B33"]
[WhiteElo "2398"]
[BlackElo "2123"]
[Annotator "ChessBase"]
[PlyCount "92"]
[EventDate "2022.07.12"]
[EventType "team-tourn"]
[EventCountry "GRE"]
[SourceTitle "playchess.com"]
[Source "ChessBase"]
[SourceQuality "1"]
[WhiteTeam "Poland"]
[BlackTeam "Ukraine"]
[WhiteTeamCountry "POL"]
[BlackTeamCountry "UKR"]
[TimeControl "40/5400+30:1800+30"]

1. e4 {[%emt 0:00:02]} c5 {[%emt 0:00:09]} 2. Nf3 {[%emt 0:00:07]} Nc6 {[%emt 0:00:04]} 3. d4 {[%emt 0:00:35]} cxd4 {[%emt 0:00:05]} 4. Nxd4 {[%emt 0:00:04]} Nf6 {[%emt 0:00:16]} 5. Nc3 e5 {[%emt 0:00:00]} 6. Ndb5 {[%emt 0:01:04]} d6 {[%emt 0:00:00]} 7. a4 {[%emt 0:01:53]} a6 {[%emt 0:00:04]} 8. Na3 {[%emt 0:00:05]} Bg4 {[%emt 0:00:03]} 9. Be2 {[%emt 0:04:29]} Bxe2 {[%emt 0:00:18]} 10. Qxe2 {[%emt 0:00:05]} d5 {[%emt 0:00:04]} 11. O-O {[%emt 0:03:30]} d4 {[%emt 0:04:53]} 12. Nd1 {[%emt 0:01:26]} Be7 {[%emt 0:05:34]} 13. f4 {[%emt 0:07:57]} Rc8 {[%emt 0:08:58]} 14. Nf2 {[%emt 0:01:16]} Nd7 {[%emt 0:03:41]} 15. Nd3 {[%emt 0:02:45]} O-O {[%emt 0:08:01]} 16. Nc4 {[%emt 0:10:48]} exf4 {[%emt 0:08:25]} 17. Bxf4 {[%emt 0:00:30]} Nb6 {[%emt 0:04:37]} 18. Nxb6 Qxb6 {[%emt 0:00:12]} 19. Bd2 {[%emt 0:15:39]} Bd6 {[%emt 0:09:52]} 20. Kh1 {[%emt 0:13:39]} Ne5 {[%emt 0:06:05]} 21. Bf4 {[%emt 0:00:12]} Nxd3 22. cxd3 {[%emt 0:03:18]} Bxf4 23. Rxf4 {[%emt 0:00:05]} Qb3 {[%emt 0:04:21]} 24. e5 {[%emt 0:09:05]} Rc2 {[%emt 0:02:18]} 25. Qe4 {[%emt 0:00:41]} Qxa4 {[%emt 0:07:20]} 26. Raf1 {[%emt 0:00:06]} Qc6 {[%emt 0:00:11]} 27. Qxc6 {[%emt 0:01:33]} Rxc6 {[%emt 0:04:27]} 28. Rxd4 {[%emt 0:00:48]} Re6 {[%emt 0:03:29]} 29. Rd7 Rxe5 {[%emt 0:00:30]} 30. Rxb7 Re2 {[%emt 0:00:30]} 31. h3 g6 {[%emt 0:00:30]} 32. b4 Rd2 {[%emt 0:00:30]} 33. Rf3 f5 {[%emt 0:00:30]} 34. Re3 Rf7 {[%emt 0:00:30]} 35. Rb6 Rb2 {[%emt 0:00:30]} 36. d4 Rd7 {[%emt 0:00:30]} 37. d5 f4 {[%emt 0:00:30]} 38. Rd3 f3 {[%emt 0:00:30]} 39. Rxf3 Rxd5 {[%emt 0:00:30]} 40. Rb7 Rd1+ {[%emt 0:00:30]} 41. Kh2 Rdd2 {[%emt 0:30:30]} 42. Rg3 Rf2 {[%emt 0:00:30]} 43. Rg4 a5 {[%emt 0:00:30]} 44. b5 Rf7 {[%emt 0:00:30]} 45. Rb8+ Rf8 {[%emt 0:00:30]} 46. Rb7 Rf7 {[%emt 0:00:30]} 1/2-1/2

[Event "EYTCC Open U18 2022"]
[Site "Thessaloniki"]
[Date "2022.07.12"]
[Round "1.12"]
[White "Podolskyi, Mykhailo"]
[Black "Seemann, Jakub"]
[Result "0-1"]
[ECO "E81"]
[WhiteElo "2025"]
[BlackElo "2382"]
[Annotator "ChessBase"]
[PlyCount "88"]
[EventDate "2022.07.12"]
[EventType "team-tourn"]
[EventCountry "GRE"]
[SourceTitle "playchess.com"]
[Source "ChessBase"]
[SourceQuality "1"]
[WhiteTeam "Ukraine"]
[BlackTeam "Poland"]
[WhiteTeamCountry "UKR"]
[BlackTeamCountry "POL"]
[TimeControl "40/5400+30:1800+30"]

1. d4 {[%emt 0:00:10]} Nf6 {[%emt 0:00:13]} 2. c4 {[%emt 0:00:31]} g6 {[%emt 0:00:08]} 3. Nc3 {[%emt 0:00:12]} Bg7 {[%emt 0:00:09]} 4. e4 {[%emt 0:00:52]} d6 {[%emt 0:00:06]} 5. Nge2 {[%emt 0:01:03]} O-O {[%emt 0:01:08]} 6. f3 {[%emt 0:00:17]} a6 {[%emt 0:01:28]} 7. Be3 {[%emt 0:01:11]} b5 {[%emt 0:00:07]} 8. cxb5 {[%emt 0:04:16]} axb5 {[%emt 0:00:06]} 9. Nxb5 {[%emt 0:00:54]} c6 {[%emt 0:00:13]} 10. Nbc3 {[%emt 0:00:45]} Nbd7 {[%emt 0:00:08]} 11. Nf4 {[%emt 0:04:29]} e5 {[%emt 0:07:18]} 12. dxe5 {[%emt 0:06:09]} Nxe5 {[%emt 0:00:16]} 13. Be2 {[%emt 0:05:15]} d5 {[%emt 0:22:28]} 14. O-O {[%emt 0:34:18]} Re8 {[%emt 0:36:34]} 15. Bc5 {[%emt 0:11:33]} Ned7 {[%emt 0:04:56]} 16. Bf2 {[%emt 0:04:33]} dxe4 {[%emt 0:00:39]} 17. fxe4 {[%emt 0:00:12]} Nxe4 {[%emt 0:01:01]} 18. Nxe4 {[%emt 0:00:16]} Rxe4 {[%emt 0:00:03]} 19. Nd3 {[%emt 0:00:04]} Ba6 {[%emt 0:02:31]} 20. Bf3 {[%emt 0:02:49]} Re6 {[%emt 0:00:57]} 21. Qc2 {[%emt 0:06:07]} Qg5 {[%emt 0:05:44]} 22. Rfd1 {[%emt 0:02:55]} Bxd3 {[%emt 0:01:26]} 23. Rxd3 {[%emt 0:00:33]} Ne5 {[%emt 0:00:10]} 24. Rb3 {[%emt 0:00:54]} Rae8 {[%emt 0:02:37]} 25. a4 {[%emt 0:04:08]} Rf6 {[%emt 0:02:44]} 26. Be2 {[%emt 0:03:58]} Rxf2 {[%emt 0:00:44]} 27. Kxf2 {[%emt 0:00:16]} Ng4+ {[%emt 0:05:00]} 28. Bxg4 {[%emt 0:00:49]} Bd4+ {[%emt 0:00:07]} 29. Kf1 {[%emt 0:03:45]} Qf4+ {[%emt 0:00:09]} 30. Bf3 {[%emt 0:00:40]} Qxh2 {[%emt 0:00:05]} 31. Be4 {[%emt 0:00:14]} Qg1+ {[%emt 0:01:50]} 32. Ke2 {[%emt 0:00:05]} Qxg2+ {[%emt 0:00:47]} 33. Kd1 {[%emt 0:00:21]} Qf1+ {[%emt 0:00:43]} 34. Kd2 {[%emt 0:00:04]} Qf4+ {[%emt 0:00:40]} 35. Kd1 {[%emt 0:00:44]} Rxe4 {[%emt 0:00:48]} 36. Qg2 {[%emt 0:01:37]} Bf2 {[%emt 0:01:40]} 37. Qf3 {[%emt 0:01:23]} Re1+ {[%emt 0:00:08]} 38. Kc2 {[%emt 0:00:06]} Qxf3 {[%emt 0:00:20]} 39. Rxf3 {[%emt 0:00:35]} Rxa1 {[%emt 0:00:06]} 40. Rxf2 {[%emt 0:00:00]} Rxa4 {[%emt 0:00:00]} 41. Rf6 {[%emt 0:00:33]} h5 {[%emt 0:00:51]} 42. Rxc6 {[%emt 0:00:28]} h4 {[%emt 0:00:05]} 43. b3 {[%emt 0:01:42]} h3 {[%emt 0:00:33]} 44. Rd6 {[%emt 0:00:02]} Ra1 {[%emt 0:00:24]} 0-1

[Event "EYTCC Open U18 2022"]
[Site "Thessaloniki"]
[Date "2022.07.12"]
[Round "1.13"]
[White "Herega, Nejc"]
[Black "Borhy, Marcell"]
[Result "1/2-1/2"]
[ECO "E48"]
[WhiteElo "2160"]
[BlackElo "2411"]
[Annotator "ChessBase"]
[PlyCount "85"]
[EventDate "2022.07.12"]
[EventType "team-tourn"]
[EventCountry "GRE"]
[SourceTitle "playchess.com"]
[Source "ChessBase"]
[SourceQuality "1"]
[WhiteTeam "Slovenia"]
[BlackTeam "Hungary"]
[WhiteTeamCountry "SLO"]
[BlackTeamCountry "HUN"]
[TimeControl "40/5400+30:1800+30"]

1. d4 {[%emt 0:00:09]} Nf6 {[%emt 0:00:24]} 2. c4 {[%emt 0:00:36]} e6 {[%emt 0:00:21]} 3. Nc3 {[%emt 0:00:32]} Bb4 {[%emt 0:00:23]} 4. e3 {[%emt 0:01:55]} O-O {[%emt 0:00:17]} 5. Bd3 {[%emt 0:00:03]} c5 {[%emt 0:00:12]} 6. Nge2 {[%emt 0:01:13]} d5 {[%emt 0:00:24]} 7. cxd5 {[%emt 0:01:32]} cxd4 {[%emt 0:00:14]} 8. exd4 {[%emt 0:01:35]} Nxd5 {[%emt 0:00:19]} 9. O-O {[%emt 0:02:15]} Nc6 {[%emt 0:00:22]} 10. Nxd5 {[%emt 0:08:01]} Qxd5 {[%emt 0:04:06]} 11. Be3 {[%emt 0:07:44]} Qh5 {[%emt 0:00:29]} 12. Rc1 {[%emt 0:09:37]} Bd6 {[%emt 0:09:04]} 13. Ng3 {[%emt 0:06:52]} Qxd1 {[%emt 0:22:11]} 14. Rfxd1 {[%emt 0:00:29]} Nb4 {[%emt 0:00:23]} 15. Bc4 {[%emt 0:08:02]} b5 {[%emt 0:07:15]} 16. Bxb5 {[%emt 0:08:14]} Nxa2 {[%emt 0:00:23]} 17. Rc6 {[%emt 0:08:21]} Rd8 {[%emt 0:09:32]} 18. Ne4 {[%emt 0:02:31]} Bf8 {[%emt 0:07:52]} 19. Rc7 {[%emt 0:03:55]} Nb4 {[%emt 0:00:27]} 20. Bg5 {[%emt 0:05:05]} Rd5 {[%emt 0:00:43]} 21. Be8 {[%emt 0:01:03]} Rf5 {[%emt 0:11:29]} 22. g4 {[%emt 0:06:28]} Nd5 {[%emt 0:02:36]} 23. gxf5 {[%emt 0:05:50]} Nxc7 {[%emt 0:00:03]} 24. Bc6 {[%emt 0:00:13]} Rb8 {[%emt 0:01:25]} 25. Bf4 {[%emt 0:02:19]} Rb6 {[%emt 0:00:34]} 26. Rc1 {[%emt 0:00:43]} Na6 {[%emt 0:00:48]} 27. fxe6 {[%emt 0:01:31]} fxe6 {[%emt 0:02:26]} 28. Bd6 {[%emt 0:02:02]} Bxd6 {[%emt 0:10:17]} 29. Nxd6 {[%emt 0:00:25]} Bd7 {[%emt 0:00:05]} 30. Bxd7 {[%emt 0:02:31]} Rxd6 {[%emt 0:00:04]} 31. Bb5 {[%emt 0:00:18]} Nb4 {[%emt 0:03:04]} 32. Rc8+ {[%emt 0:00:35]} Kf7 {[%emt 0:00:06]} 33. Rc7+ {[%emt 0:00:41]} Kf6 {[%emt 0:00:24]} 34. Rxa7 {[%emt 0:01:39]} Rxd4 {[%emt 0:00:09]} 35. Be8 {[%emt 0:00:59]} Rg4+ {[%emt 0:03:59]} 36. Kf1 {[%emt 0:00:32]} Nd3 {[%emt 0:01:15]} 37. Rf7+ {[%emt 0:00:41]} Ke5 {[%emt 0:00:11]} 38. b3 {[%emt 0:01:11]} Nc5 {[%emt 0:02:20]} 39. Ba4 {[%emt 0:00:54]} g5 {[%emt 0:01:08]} 40. Rxh7 {[%emt 0:00:00]} Rf4 {[%emt 0:00:00]} 41. Rc7 {[%emt 0:03:50]} Nxa4 {[%emt 0:05:23]} 42. bxa4 {[%emt 0:00:25]} Rxa4 {[%emt 0:00:21]} 43. Rc5+ {[%emt 0:00:58]} 1/2-1/2

[Event "EYTCC Open U18 2022"]
[Site "Thessaloniki"]
[Date "2022.07.12"]
[Round "1.14"]
[White "Juhasz, Agoston"]
[Black "Olenik Campa, Rudi"]
[Result "1-0"]
[ECO "B30"]
[WhiteElo "2344"]
[BlackElo "2203"]
[Annotator "ChessBase"]
[PlyCount "73"]
[EventDate "2022.07.12"]
[EventType "team-tourn"]
[EventCountry "GRE"]
[SourceTitle "playchess.com"]
[Source "ChessBase"]
[SourceQuality "1"]
[WhiteTeam "Hungary"]
[BlackTeam "Slovenia"]
[WhiteTeamCountry "HUN"]
[BlackTeamCountry "SLO"]
[TimeControl "40/5400+30:1800+30"]

1. e4 {[%emt 0:00:03]} c5 {[%emt 0:00:06]} 2. Nf3 {[%emt 0:00:06]} Nc6 {[%emt 0:00:04]} 3. Nc3 {[%emt 0:00:29]} e5 {[%emt 0:02:26]} 4. Bc4 {[%emt 0:00:46]} d6 {[%emt 0:03:22]} 5. d3 {[%emt 0:00:24]} Be7 {[%emt 0:05:22]} 6. Nd2 {[%emt 0:01:29]} Nf6 {[%emt 0:02:00]} 7. Nf1 {[%emt 0:00:15]} O-O {[%emt 0:07:53]} 8. Ne3 {[%emt 0:00:54]} Be6 {[%emt 0:02:42]} 9. O-O {[%emt 0:01:45]} Re8 {[%emt 0:08:06]} 10. Ned5 {[%emt 0:09:05]} Rb8 {[%emt 0:12:05]} 11. f4 {[%emt 0:15:39]} exf4 {[%emt 0:04:35]} 12. Bxf4 {[%emt 0:01:40]} Ne5 {[%emt 0:01:46]} 13. Bb5 {[%emt 0:24:21]} Nfd7 {[%emt 0:01:53]} 14. Bxe5 {[%emt 0:06:57]} dxe5 {[%emt 0:00:51]} 15. a4 {[%emt 0:03:20]} Bg5 {[%emt 0:06:01]} 16. a5 {[%emt 0:04:20]} Rf8 {[%emt 0:02:12]} 17. Kh1 {[%emt 0:00:47]} g6 {[%emt 0:03:11]} 18. Qe2 {[%emt 0:02:05]} h5 {[%emt 0:01:46]} 19. Bc4 {[%emt 0:01:45]} a6 {[%emt 0:06:33]} 20. h3 {[%emt 0:02:11]} Kg7 {[%emt 0:03:35]} 21. Rf3 {[%emt 0:02:57]} Rh8 {[%emt 0:07:00]} 22. Kg1 {[%emt 0:02:44]} Rc8 {[%emt 0:01:37]} 23. Ne3 {[%emt 0:02:19]} Nb8 {[%emt 0:02:40]} 24. Raf1 {[%emt 0:01:33]} Bxc4 {[%emt 0:07:28]} 25. Nxc4 {[%emt 0:01:19]} Rf8 {[%emt 0:00:08]} 26. Nd5 {[%emt 0:01:49]} Nc6 {[%emt 0:01:06]} 27. Qf2 {[%emt 0:01:22]} f5 {[%emt 0:01:23]} 28. c3 {[%emt 0:05:45]} f4 {[%emt 0:04:11]} 29. Ncb6 {[%emt 0:00:38]} Nxa5 {[%emt 0:02:17]} 30. Nxc8 {[%emt 0:00:54]} Qxc8 {[%emt 0:00:03]} 31. h4 {[%emt 0:01:22]} Bd8 {[%emt 0:00:44]} 32. d4 {[%emt 0:01:26]} Qg4 {[%emt 0:00:48]} 33. dxe5 {[%emt 0:02:26]} Bxh4 {[%emt 0:00:09]} 34. Qxc5 {[%emt 0:00:21]} Bg3 {[%emt 0:00:24]} 35. Qxa5 {[%emt 0:01:01]} Qh4 {[%emt 0:00:28]} 36. Rxg3 {[%emt 0:00:29]} Qxg3 {[%emt 0:00:13]} 37. e6 {[%emt 0:01:00]} 1-0

[Event "EYTCC Open U18 2022"]
[Site "Thessaloniki"]
[Date "2022.07.12"]
[Round "1.15"]
[White "Gregoric, Andraz"]
[Black "Palczert, Matyas"]
[Result "1/2-1/2"]
[ECO "B50"]
[WhiteElo "2199"]
[BlackElo "2321"]
[Annotator "ChessBase"]
[PlyCount "82"]
[EventDate "2022.07.12"]
[EventType "team-tourn"]
[EventCountry "GRE"]
[SourceTitle "playchess.com"]
[Source "ChessBase"]
[SourceQuality "1"]
[WhiteTeam "Slovenia"]
[BlackTeam "Hungary"]
[WhiteTeamCountry "SLO"]
[BlackTeamCountry "HUN"]
[TimeControl "40/5400+30:1800+30"]

1. e4 {[%emt 0:00:01]} c5 {[%emt 0:00:13]} 2. Nf3 {[%emt 0:00:04]} d6 {[%emt 0:00:10]} 3. c3 {[%emt 0:00:05]} Nf6 {[%emt 0:00:13]} 4. h3 {[%emt 0:00:05]} Nc6 {[%emt 0:00:26]} 5. Bd3 {[%emt 0:00:06]} e5 {[%emt 0:01:05]} 6. Bc2 {[%emt 0:00:14]} Qc7 {[%emt 0:00:58]} 7. O-O {[%emt 0:00:34]} Be7 {[%emt 0:00:58]} 8. Qe2 {[%emt 0:13:37]} O-O {[%emt 0:01:42]} 9. Na3 {[%emt 0:09:57]} a6 {[%emt 0:04:01]} 10. Nc4 {[%emt 0:05:16]} Be6 {[%emt 0:02:39]} 11. Rd1 {[%emt 0:07:24]} Nh5 {[%emt 0:09:44]} 12. d4 {[%emt 0:18:09]} cxd4 {[%emt 0:08:19]} 13. cxd4 {[%emt 0:01:28]} Nxd4 {[%emt 0:10:10]} 14. Nxd4 {[%emt 0:00:39]} exd4 {[%emt 0:02:25]} 15. Rxd4 {[%emt 0:11:23]} Nf6 {[%emt 0:14:48]} 16. Bf4 {[%emt 0:03:30]} Rac8 {[%emt 0:03:03]} 17. Ne3 {[%emt 0:04:33]} Nd7 {[%emt 0:03:36]} 18. Rad1 {[%emt 0:03:37]} Ne5 {[%emt 0:01:32]} 19. Bb3 {[%emt 0:02:31]} Rfd8 {[%emt 0:14:41]} 20. Nd5 {[%emt 0:03:29]} Bxd5 {[%emt 0:00:25]} 21. Rxd5 {[%emt 0:00:02]} Bf6 {[%emt 0:03:28]} 22. Qd2 {[%emt 0:01:49]} h6 {[%emt 0:02:49]} 23. Rxd6 {[%emt 0:04:01]} Rxd6 {[%emt 0:03:50]} 24. Qxd6 {[%emt 0:00:02]} Qxd6 {[%emt 0:00:16]} 25. Rxd6 {[%emt 0:00:01]} Nc4 {[%emt 0:00:43]} 26. Bxc4 {[%emt 0:07:53]} Rxc4 {[%emt 0:00:07]} 27. e5 {[%emt 0:01:01]} Rxf4 {[%emt 0:03:21]} 28. exf6 {[%emt 0:00:05]} Rb4 {[%emt 0:01:10]} 29. b3 {[%emt 0:00:18]} g5 {[%emt 0:00:35]} 30. Rd7 {[%emt 0:00:58]} a5 {[%emt 0:00:56]} 31. g3 {[%emt 0:02:04]} a4 {[%emt 0:01:29]} 32. bxa4 {[%emt 0:00:03]} Rxa4 {[%emt 0:00:16]} 33. Rxb7 {[%emt 0:00:12]} Rxa2 {[%emt 0:00:25]} 34. Rb6 {[%emt 0:00:09]} Kh7 {[%emt 0:00:45]} 35. Kg2 {[%emt 0:00:09]} Kg6 {[%emt 0:01:07]} 36. Rc6 {[%emt 0:01:08]} Ra5 {[%emt 0:00:58]} 37. Rb6 {[%emt 0:01:28]} Rf5 {[%emt 0:00:15]} 38. Rb4 {[%emt 0:00:24]} Rxf6 {[%emt 0:00:12]} 39. Ra4 {[%emt 0:00:03]} Rb6 {[%emt 0:00:12]} 40. Ra5 {[%emt 0:00:00]} f5 {[%emt 0:00:00]} 41. Rc5 {[%emt 0:00:19]} Ra6 {[%emt 0:01:18]} 1/2-1/2